bitfinex/quotes_SOLUSD_20230111
["timestamp","ask_amount","ask_price","bid_price","bid_amount"]
[1673446992358,20.0,15.668,15.658,0.96]
[1673446992579,20.0,15.669,15.658,1.82729895]
[1673446992901,20.0,15.669,15.66,20.0]
[1673446994890,18.39,15.67,15.661,47.9]
[1673446995303,18.39,15.67,15.662,0.96]
[1673446995733,18.39,15.67,15.664,20.0]
[1673446995944,47.85,15.676,15.666,20.0]
[1673446996153,47.85,15.678,15.667,0.86729895]
[1673446996360,47.84,15.679,15.668,20.0]
[1673446996564,20.0,15.678,15.669,0.86729895]
[1673446996902,20.0,15.678,15.668,20.0]
[1673446997212,47.85,15.677,15.668,20.0]
[1673446997738,1.92,15.676,15.668,20.0]
[1673446998063,0.96,15.676,15.668,20.0]
[1673446998276,47.85,15.677,15.668,20.0]
[1673446999098,20.0,15.678,15.668,20.0]
[1673447001536,20.0,15.678,15.67,20.0]
[1673447002984,47.84,15.679,15.67,20.0]
[1673447003196,137.4192,15.684,15.671,49.79]
[1673447003406,137.4192,15.684,15.672,20.0]
[1673447003623,137.4192,15.684,15.673,1.92]
[1673447003828,137.4192,15.684,15.673,49.78]
[1673447004663,137.4192,15.684,15.674,20.0]
[1673447004885,137.4192,15.684,15.675,1.92]
[1673447005189,137.4192,15.684,15.675,49.78]
[1673447005609,137.4192,15.684,15.676,20.0]
[1673447005837,137.4192,15.684,15.677,1.92]
[1673447006028,137.4192,15.684,15.677,49.77]
[1673447006239,137.4192,15.684,15.677,47.85]
[1673447006454,137.4192,15.684,15.676,20.0]
[1673447009198,137.4192,15.684,15.677,47.85]
[1673447009434,137.4192,15.684,15.676,20.0]
[1673447009737,137.4192,15.684,15.675,47.86]
[1673447009957,137.4192,15.684,15.674,20.0]
[1673447010164,18.57,15.68,15.674,20.0]
[1673447011313,18.57,15.68,15.675,0.96]
[1673447011525,137.4192,15.684,15.675,0.96]
[1673447011736,47.83,15.683,15.675,0.96]
[1673447011957,47.83,15.683,15.674,20.0]
[1673447012144,18.57,15.68,15.674,20.0]
[1673447013433,18.57,15.68,15.675,0.96]
[1673447013642,137.4192,15.684,15.675,1.92]
[1673447013951,47.83,15.683,15.675,1.92]
[1673447015298,47.83,15.683,15.676,0.96]
[1673447015632,47.83,15.683,15.677,0.96]
[1673447015835,137.4192,15.684,15.678,0.96]
[1673447016258,137.4192,15.684,15.679,0.96]
[1673447016876,137.4192,15.684,15.68,0.96]
[1673447017086,137.4192,15.684,15.681,0.96]
[1673447017292,68.7096,15.684,15.681,0.96]
[1673447017617,68.7096,15.684,15.682,20.0]
[1673447017830,68.7096,15.684,15.683,0.79557727]
[1673447018151,68.7096,15.684,15.677,20.0]
[1673447019522,68.7096,15.684,15.677,67.85]
[1673447019720,68.7096,15.684,15.678,1.92]
[1673447020149,68.7096,15.684,15.678,0.96]
[1673447020787,68.7096,15.684,15.677,20.0]
[1673447020999,47.83,15.683,15.677,20.0]
[1673447022477,68.7096,15.684,15.678,1.92]
[1673447023617,47.83,15.683,15.677,20.0]
[1673447023826,47.83,15.683,15.678,0.96]
[1673447024037,47.83,15.683,15.679,0.96]
[1673447024881,47.83,15.683,15.677,20.0]
[1673447025090,68.7096,15.684,15.678,1.92]
[1673447025515,68.7096,15.684,15.677,20.0]
[1673447025719,116.5396,15.684,15.677,20.0]
[1673447026136,68.7096,15.684,15.677,20.0]
[1673447026784,68.7096,15.684,15.678,1.92]
[1673447031090,68.7096,15.684,15.677,20.0]
[1673447033938,47.83,15.683,15.676,20.0]
[1673447034138,1.19263032,15.682,15.676,20.0]
[1673447037710,47.83,15.683,15.676,20.0]
[1673447039327,116.5396,15.684,15.676,20.0]
[1673447040043,116.5396,15.684,15.677,1.92]
[1673447040228,68.7096,15.684,15.676,20.0]
[1673447040793,68.7096,15.684,15.677,1.92]
[1673447041699,47.8,15.695,15.677,1.92]
[1673447041909,47.8,15.695,15.679,0.86729895]
[1673447042139,47.8,15.695,15.681,0.86729895]
[1673447042344,47.8,15.695,15.683,0.86729895]
[1673447042558,47.8,15.695,15.684,0.96]
[1673447042763,47.8,15.695,15.685,0.96]
[1673447043175,1.199098,15.697,15.685,0.96]
[1673447043176,1.199098,15.697,15.687,20.0]
[1673447043390,47.79,15.696,15.688,1.92]
[1673447043810,47.79,15.696,15.687,20.0]
[1673447045503,47.79,15.696,15.688,1.92]
[1673447047293,47.79,15.696,15.686,20.0]
[1673447047503,47.79,15.696,15.684,20.0]
[1673447047722,18.57,15.69,15.684,20.0]
[1673447049412,18.57,15.69,15.685,0.96]
[1673447049622,47.8,15.695,15.684,20.0]
[1673447049834,92.85,15.69,15.682,20.0]
[1673447050053,92.7,15.69,15.681,20.0]
[1673447050361,48.77,15.689,15.678,20.0]
[1673447051192,0.75597643,15.688,15.678,20.0]
[1673447051395,20.75597643,15.688,15.672,20.0]
[1673447051618,18.57,15.68,15.672,20.0]
[1673447051936,1.28851986,15.679,15.672,20.0]
[1673447052330,49.12851986,15.679,15.67,20.0]
[1673447054768,1.28851986,15.679,15.67,20.0]
[1673447054982,18.6,15.68,15.672,20.0]
[1673447055170,20.0,15.679,15.67,6.13454]
[1673447055386,1.65868418,15.678,15.667,20.0]
[1673447055596,1.65868418,15.679,15.668,20.0]
[1673447055806,1.65868418,15.679,15.668,67.88]
[1673447056035,1.65868418,15.679,15.669,20.0]
[1673447056346,18.6,15.68,15.669,26.13493]
[1673447056559,18.6,15.68,15.67,47.87]
[1673447056769,18.6,15.68,15.671,20.0]
[1673447057173,18.6,15.68,15.672,47.87]
[1673447057612,18.6,15.68,15.673,20.0]
[1673447057824,111.6651,15.695,15.673,20.0]
[1673447057825,92.88,15.69,15.673,20.0]
[1673447058031,92.88,15.69,15.675,20.0]
[1673447058233,92.88,15.69,15.676,20.0]
[1673447058442,92.88,15.69,15.676,73.98219]
[1673447058654,92.88,15.69,15.677,20.0]
[1673447058865,92.88,15.69,15.678,20.0]
[1673447059084,92.88,15.69,15.679,20.0]
[1673447059280,92.88,15.69,15.68,0.96]
[1673447059485,92.88,15.69,15.681,20.0]
[1673447059823,92.88,15.69,15.682,1.92]
[1673447060045,47.81,15.689,15.682,1.92]
[1673447060221,18.6,15.69,15.682,1.92]
[1673447060434,18.6,15.69,15.681,20.0]
[1673447060643,18.6,15.69,15.682,1.92]
[1673447061393,47.81,15.689,15.682,1.92]
[1673447061591,18.6,15.69,15.682,49.75]
[1673447061802,47.8,15.695,15.682,49.75]
[1673447062013,47.8,15.695,15.683,20.0]
[1673447062234,47.8,15.695,15.684,1.92]
[1673447062442,47.8,15.695,15.684,49.75]
[1673447062633,47.8,15.695,15.685,20.0]
[1673447063604,47.8,15.695,15.686,1.92]
[1673447063912,159.8526,15.696,15.686,1.92]
[1673447064126,159.8526,15.696,15.687,20.0]
[1673447064329,47.79,15.696,15.688,1.92]
[1673447064548,47.78,15.699,15.688,1.92]
[1673447064744,47.79,15.696,15.688,1.92]
[1673447065160,47.78,15.699,15.688,1.92]
[1673447065581,138.45,15.7,15.69,20.0]
[1673447065582,27.78,15.7,15.69,20.0]
[1673447065806,47.78,15.699,15.691,0.96]
[1673447066015,27.78,15.7,15.69,20.0]
[1673447066440,27.78,15.7,15.691,1.92]
[1673447067387,138.51,15.7,15.69,20.0]
[1673447067600,138.51,15.7,15.691,1.92]
[1673447067601,47.78,15.699,15.691,1.92]
[1673447067810,27.96,15.7,15.691,1.92]
[1673447068213,27.96,15.7,15.693,20.0]
[1673447068423,27.96,15.7,15.694,1.92]
[1673447068748,27.96,15.7,15.691,47.81]
[1673447069067,20.0,15.698,15.677,20.0]
[1673447069268,47.79,15.696,15.682,111.4307]
[1673447069693,47.79,15.696,15.682,159.2607]
[1673447070320,47.79,15.696,15.686,1.92]
[1673447070530,47.79,15.696,15.682,159.2607]
[1673447070739,0.96,15.695,15.681,67.84]
[1673447070957,1.92,15.695,15.681,67.84]
[1673447071166,47.8,15.694,15.681,20.0]
[1673447071788,47.79,15.696,15.681,20.0]
[1673447071998,47.8,15.693,15.682,47.83]
[1673447072207,47.8,15.695,15.682,47.83]
[1673447072408,47.8,15.695,15.686,0.96]
[1673447072643,47.8,15.695,15.686,1.92]
[1673447073685,47.8,15.695,15.687,0.96]
[1673447073910,47.8,15.695,15.688,0.96]
[1673447075257,115.0098,15.696,15.688,48.78]
[1673447075467,115.0098,15.696,15.689,20.0]
[1673447075997,20.0,15.696,15.684,47.05051943]
[1673447076218,27.7,15.69,15.681,20.0]
[1673447076612,47.81,15.689,15.677,20.0]
[1673447076823,1.154941,15.688,15.677,20.0]
[1673447077257,47.82,15.687,15.674,67.86]
[1673447077474,1.21063389,15.686,15.674,20.0]
[1673447077687,27.7,15.68,15.674,20.0]
[1673447077878,1.4661032,15.679,15.673,20.0]
[1673447083370,1.4661032,15.679,15.674,1.92]
[1673447083765,111.037,15.696,15.674,49.78]
[1673447083976,138.92,15.69,15.675,21.35534746]
[1673447084200,20.0,15.689,15.676,0.96]
[1673447084523,67.81,15.689,15.676,0.96]
[1673447085462,67.81,15.689,15.677,0.96]
[1673447085674,67.81,15.689,15.678,0.96]
[1673447086814,67.81,15.689,15.679,0.96]
[1673447087042,47.81,15.689,15.68,0.96]
[1673447087258,27.96,15.69,15.68,48.8]
[1673447087462,27.96,15.69,15.681,20.96]
[1673447087788,27.96,15.69,15.682,0.96]
[1673447092219,47.8,15.694,15.682,0.96]
[1673447092410,47.78,15.699,15.684,20.0]
[1673447092620,47.79,15.696,15.685,1.92]
[1673447092829,47.79,15.696,15.685,49.75]
[1673447093250,47.79,15.696,15.685,0.96]
[1673447094626,47.79,15.696,15.685,1.92]
[1673447094945,47.79,15.696,15.686,0.96]
[1673447095164,48.989098,15.697,15.686,48.78]
[1673447095353,48.989098,15.697,15.687,0.96]
[1673447095772,48.989098,15.697,15.688,0.96]
[1673447096002,48.989098,15.697,15.689,0.96]
[1673447099252,48.989098,15.697,15.686,20.0]
[1673447099490,0.96,15.696,15.684,20.0]
[1673447100086,47.8,15.695,15.684,20.0]
[1673447100293,27.48,15.69,15.684,20.0]
[1673447100715,27.48,15.69,15.683,20.0]
[1673447101249,27.48,15.69,15.68,47.84]
[1673447101465,47.81,15.689,15.679,67.84]
[1673447101679,37.0,15.688,15.671,20.0]
[1673447101863,138.23,15.68,15.671,20.0]
[1673447102303,47.84,15.679,15.671,20.0]
[1673447103226,27.63,15.68,15.671,20.0]
[1673447103442,47.85,15.678,15.671,20.0]
[1673447103667,47.84,15.679,15.671,20.0]
[1673447104931,27.63,15.68,15.671,20.0]
[1673447105337,47.84,15.679,15.671,20.0]
[1673447105545,47.84,15.679,15.668,47.88]
[1673447105768,21.92,15.678,15.657,133.9226]
[1673447105981,138.14,15.67,15.657,133.9226]
[1673447106386,47.87,15.669,15.658,47.91]
[1673447106591,47.87,15.669,15.659,20.0]
[1673447106806,47.86,15.675,15.659,20.0]
[1673447107019,47.85,15.676,15.66,47.9]
[1673447107232,47.86,15.674,15.66,47.9]
[1673447107439,47.86,15.675,15.661,20.0]
[1673447107655,66.60512149,15.677,15.662,0.96]
[1673447107864,27.61,15.67,15.663,0.96]
[1673447108175,47.85,15.676,15.664,0.96]
[1673447108398,27.9,15.68,15.665,0.96]
[1673447108614,47.83,15.685,15.666,27.09611]
[1673447108923,27.9,15.69,15.67,27.7]
[1673447109137,27.9,15.69,15.671,145.00827237]
[1673447109452,27.9,15.69,15.674,1.19747262]
[1673447109660,27.9,15.69,15.675,7.09259]
[1673447109976,47.8,15.694,15.676,28.28966262]
[1673447110171,47.8,15.695,15.678,1.33331212]
[1673447110382,47.8,15.695,15.68,20.0]
[1673447110588,47.8,15.695,15.681,0.96]
[1673447110813,47.8,15.695,15.682,0.96]
[1673447111029,47.8,15.695,15.681,47.84]
[1673447111221,27.61,15.69,15.681,47.84]
[1673447111561,27.61,15.69,15.679,111.6474]
[1673447111562,27.61,15.69,15.68,47.84]
[1673447111960,27.61,15.69,15.681,20.0]
[1673447113952,27.61,15.69,15.682,1.92]
[1673447114485,27.61,15.69,15.683,20.0]
[1673447114695,27.61,15.69,15.684,1.92]
[1673447115024,47.8,15.695,15.684,49.75]
[1673447115340,47.78,15.699,15.684,55.87907]
[1673447115534,27.9,15.7,15.685,40.0]
[1673447115744,27.9,15.7,15.686,8.04828]
[1673447115955,47.79,15.696,15.685,53.70081098]
[1673447116283,47.79,15.696,15.678,20.0]
[1673447116489,1.199098,15.697,15.68,67.84]
[1673447116688,1.199098,15.697,15.681,27.78427377]
[1673447117029,1.199098,15.697,15.681,242.94192857]
[1673447117330,1.199098,15.697,15.683,2.32729895]
[1673447117532,1.199098,15.697,15.685,2.32729895]
[1673447117862,1.199098,15.697,15.687,2.32729895]
[1673447118075,1.199098,15.697,15.688,1.92]
[1673447118267,1.199098,15.697,15.689,2.32729895]
[1673447118482,1.199098,15.697,15.689,22.32729895]
[1673447118699,1.199098,15.697,15.69,49.73]
[1673447119019,1.199098,15.697,15.691,20.0]
[1673447119420,1.199098,15.697,15.693,20.0]
[1673447119634,1.199098,15.697,15.694,0.96]
[1673447119952,1.199098,15.697,15.693,20.0]
[1673447121107,1.199098,15.697,15.691,20.0]
[1673447121536,1.199098,15.697,15.689,70.13729895]
[1673447121744,1.199098,15.697,15.69,0.96]
[1673447121951,47.79,15.696,15.687,118.8534]
[1673447122160,20.0,15.695,15.682,20.0]
[1673447122370,20.0,15.695,15.683,128.849]
[1673447122580,20.0,15.695,15.683,20.0]
[1673447122793,27.61,15.69,15.683,20.0]
[1673447123008,27.61,15.69,15.682,20.0]
[1673447124377,27.61,15.69,15.683,1.92]
[1673447126260,27.61,15.69,15.684,0.96]
[1673447127613,27.61,15.69,15.68,47.84]
[1673447127826,27.61,15.69,15.679,156.689]
[1673447129093,20.0,15.689,15.679,108.849]
[1673447129297,0.96,15.688,15.674,47.86]
[1673447129527,0.96,15.688,15.669,47.87]
[1673447129528,27.61,15.68,15.669,47.87]
[1673447129739,138.35,15.68,15.668,47.88]
[1673447129944,49.76,15.679,15.653,47.92]
[1673447130175,49.76,15.679,15.653,159.0807]
[1673447130176,27.64,15.67,15.653,159.0807]
[1673447130379,138.44,15.67,15.654,20.0]
[1673447130584,47.87,15.669,15.654,67.92]
[1673447131221,47.87,15.669,15.655,20.0]
[1673447131630,138.28,15.67,15.657,20.0]
[1673447131847,47.87,15.669,15.657,20.0]
[1673447132383,27.48,15.67,15.659,20.0]
[1673447132693,27.48,15.68,15.659,20.0]
[1673447133009,27.48,15.68,15.661,20.0]
[1673447133206,138.28,15.68,15.661,20.0]
[1673447133419,67.84,15.679,15.662,47.9]
[1673447133636,86.59512149,15.679,15.663,1.92]
[1673447133958,18.75512149,15.678,15.663,1.92]
[1673447134271,20.0,15.677,15.663,1.92]
[1673447134460,67.85,15.677,15.664,47.89]
[1673447134671,67.85,15.677,15.665,1.92]
[1673447135727,27.48,15.67,15.665,1.92]
[1673447137624,47.86,15.675,15.665,1.92]
[1673447137836,27.6,15.67,15.665,1.92]
[1673447138040,27.6,15.67,15.665,0.96]
[1673447138874,27.6,15.67,15.662,47.9]
[1673447139088,27.6,15.67,15.663,1.92]
[1673447141199,27.6,15.67,15.663,21.92]
[1673447145208,47.85,15.676,15.663,21.92]
[1673447145429,20.0,15.675,15.664,47.89]
[1673447145620,20.0,15.675,15.665,1.92]
[1673447146353,20.0,15.676,15.665,1.92]
[1673447146776,47.86,15.675,15.665,1.92]
[1673447150046,20.0,15.674,15.662,47.9]
[1673447150363,138.96,15.67,15.645,63.34]
[1673447150571,1.92,15.669,15.656,20.0]
[1673447150779,49.79,15.669,15.656,20.0]
[1673447150978,49.79,15.669,15.656,67.91]
[1673447151193,47.87,15.669,15.656,67.91]
[1673447151606,47.87,15.669,15.657,20.0]
[1673447151821,47.87,15.669,15.658,20.0]
[1673447152257,47.87,15.669,15.659,1.92]
[1673447153080,47.87,15.669,15.659,21.92]
[1673447153291,28.05,15.67,15.659,69.82]
[1673447154359,47.86,15.675,15.659,69.82]
[1673447155072,47.86,15.675,15.662,1.12544157]
[1673447155281,47.86,15.675,15.664,1.12544157]
[1673447155510,47.86,15.675,15.666,1.12544157]
[1673447155702,47.86,15.675,15.664,1.12544157]
[1673447155913,47.86,15.675,15.666,1.19177061]
[1673447156124,47.86,15.675,15.668,1.19177061]
[1673447156345,47.86,15.675,15.669,0.96]
[1673447156561,47.86,15.675,15.669,1.92]
[1673447156965,248.3937,15.68,15.67,0.96]
[1673447156966,47.84,15.679,15.67,0.96]
[1673447157174,137.0937,15.68,15.671,0.96]
[1673447157503,137.0937,15.68,15.672,0.96]
[1673447157716,27.85,15.68,15.672,0.96]
[1673447158030,27.85,15.68,15.673,0.96]
[1673447158459,27.85,15.68,15.669,165.6897]
[1673447158983,27.85,15.68,15.67,20.0]
[1673447159715,47.83,15.682,15.67,20.0]
[1673447159924,27.61,15.68,15.671,49.79]
[1673447160565,27.61,15.68,15.672,20.0]
[1673447160876,27.61,15.68,15.673,1.92]
[1673447166006,27.61,15.68,15.673,0.96]
[1673447166867,27.61,15.68,15.674,0.96]
[1673447167105,27.61,15.68,15.675,0.96]
[1673447167303,119.3308,15.686,15.676,0.96]
[1673447167304,47.83,15.684,15.676,0.96]
[1673447167520,47.83,15.685,15.676,0.96]
[1673447167731,47.83,15.683,15.676,0.96]
[1673447167940,47.82,15.686,15.677,0.96]
[1673447168148,47.82,15.687,15.677,0.96]
[1673447168466,138.79,15.69,15.678,48.81]
[1673447168467,27.94,15.69,15.678,48.81]
[1673447168885,27.94,15.69,15.679,20.96]
[1673447169101,75.75,15.69,15.68,0.96]
[1673447169293,27.94,15.69,15.68,0.96]
[1673447169510,27.94,15.69,15.681,0.96]
[1673447169716,27.94,15.69,15.682,0.96]
[1673447169931,27.94,15.69,15.683,0.96]
[1673447170790,75.75,15.69,15.683,0.96]
[1673447171094,27.94,15.69,15.678,20.0]
[1673447171287,139.21,15.69,15.672,20.0]
[1673447171623,27.75,15.68,15.672,20.0]
[1673447173299,27.75,15.68,15.673,1.92]
[1673447179941,27.75,15.68,15.672,20.0]
[1673447179942,27.75,15.68,15.67,133.9999]
[1673447180344,47.84,15.679,15.67,133.9999]
[1673447180978,27.75,15.68,15.67,133.9999]
[1673447181307,27.75,15.68,15.671,1.92]
[1673447182654,112.0782,15.688,15.672,47.87]
[1673447182994,112.0782,15.688,15.673,21.92]
[1673447183176,112.0782,15.688,15.674,20.0]
[1673447183389,27.9,15.69,15.675,1.92]
[1673447183606,47.8,15.693,15.675,21.92]
[1673447183817,47.8,15.694,15.676,67.85]
[1673447184022,165.5126,15.695,15.677,1.92]
[1673447184226,165.5126,15.695,15.678,108.8173]
[1673447184447,47.8,15.695,15.679,21.92]
[1673447184860,47.8,15.695,15.681,20.0]
[1673447185195,27.75,15.69,15.68,47.84]
[1673447185720,27.75,15.69,15.679,67.84]
[1673447186247,27.75,15.69,15.68,20.0]
[1673447186764,27.75,15.69,15.681,1.92]
[1673447187486,27.75,15.69,15.68,20.0]
[1673447187710,27.75,15.69,15.679,67.84]
[1673447187920,27.75,15.69,15.679,47.84]
[1673447188561,27.75,15.69,15.679,67.84]
[1673447188745,27.75,15.69,15.68,1.92]
[1673447190335,27.75,15.69,15.68,49.76]
[1673447190547,27.75,15.69,15.681,20.0]
[1673447190741,47.8,15.693,15.682,1.92]
[1673447190952,47.8,15.694,15.682,1.92]
[1673447191167,109.2795,15.696,15.683,47.83]
[1673447191168,47.8,15.695,15.683,47.83]
[1673447191503,157.0695,15.696,15.684,1.92]
[1673447191713,20.0,15.695,15.684,21.92]
[1673447192865,20.0,15.695,15.684,69.75]
[1673447194438,47.78,15.699,15.684,69.75]
[1673447194649,27.94,15.7,15.685,20.0]
[1673447194869,27.94,15.7,15.686,1.92]
[1673447195183,75.72,15.7,15.686,49.74]
[1673447195385,27.94,15.7,15.688,20.0]
[1673447195600,27.94,15.7,15.689,1.92]
[1673447195809,27.94,15.7,15.689,49.73]
[1673447196024,27.94,15.7,15.69,20.0]
[1673447196234,27.94,15.7,15.691,1.92]
[1673447196444,27.94,15.7,15.691,49.73]
[1673447196656,27.94,15.7,15.692,20.0]
[1673447196859,27.94,15.7,15.693,1.92]
[1673447197290,27.94,15.7,15.691,47.81]
[1673447197507,27.94,15.7,15.69,20.0]
[1673447198558,27.94,15.7,15.692,20.0]
[1673447198753,27.94,15.7,15.693,1.92]
[1673447199605,27.94,15.7,15.693,49.72]
[1673447200131,27.94,15.7,15.694,20.0]
[1673447200329,27.94,15.7,15.695,1.92]
[1673447200544,102.5295,15.704,15.695,1.92]
[1673447200751,47.77,15.704,15.695,1.92]
[1673447201069,47.76,15.707,15.695,1.92]
[1673447201391,20.0,15.706,15.695,1.92]
[1673447201593,67.76,15.706,15.695,1.92]
[1673447201801,20.0,15.706,15.695,1.92]
[1673447202014,47.76,15.705,15.695,1.92]
[1673447202223,47.76,15.705,15.696,20.0]
[1673447202432,20.0,15.706,15.697,3.60478465]
[1673447202639,47.76,15.705,15.697,3.60478465]
[1673447202851,47.76,15.705,15.697,1.92]
[1673447203066,47.76,15.706,15.697,1.92]
[1673447203272,20.0,15.705,15.697,1.92]
[1673447203481,27.9,15.71,15.698,47.79]
[1673447203685,47.75,15.711,15.699,1.92]
[1673447204017,19.14496728,15.715,15.699,1.92]
[1673447204334,27.75,15.71,15.7,47.78]
[1673447204546,40.0,15.709,15.694,20.0]
[1673447204769,27.75,15.7,15.694,20.0]
[1673447206229,27.75,15.7,15.695,1.92]
[1673447206436,19.14496728,15.706,15.695,1.92]
[1673447206776,67.76,15.705,15.695,1.92]
[1673447208239,86.90496728,15.705,15.695,1.92]
[1673447208428,67.76,15.705,15.695,1.92]
[1673447209481,19.14496728,15.704,15.695,1.92]
[1673447210018,47.77,15.703,15.694,20.0]
[1673447210231,27.75,15.7,15.692,20.0]
[1673447211277,27.75,15.7,15.693,0.96]
[1673447211499,27.75,15.7,15.693,1.92]
[1673447212541,20.0,15.705,15.693,1.92]
[1673447212741,20.0,15.708,15.694,47.8]
[1673447212952,20.0,15.708,15.695,1.92]
[1673447213161,47.76,15.707,15.695,1.92]
[1673447213583,20.0,15.706,15.695,1.92]
[1673447214325,47.76,15.705,15.695,1.92]
[1673447221569,20.0,15.706,15.695,1.92]
[1673447221782,20.0,15.708,15.695,1.92]
[1673447222211,47.76,15.707,15.695,1.92]
[1673447222430,20.0,15.706,15.695,1.92]
[1673447223253,20.0,15.708,15.695,1.92]
[1673447223675,47.76,15.707,15.695,1.92]
[1673447223916,20.0,15.706,15.695,1.92]
[1673447224509,47.76,15.706,15.695,1.92]
[1673447224729,20.0,15.705,15.695,1.92]
[1673447225163,20.0,15.707,15.695,1.92]
[1673447225366,47.76,15.707,15.695,1.92]
[1673447225579,20.0,15.706,15.695,1.92]
[1673447225899,27.63,15.71,15.697,2.31945125]
[1673447226093,47.72,15.719,15.698,21.92]
[1673447226304,47.72,15.719,15.698,69.71]
[1673447227041,47.72,15.719,15.698,85.635912]
[1673447227246,20.0,15.718,15.698,91.759512]
[1673447227679,47.73,15.717,15.698,75.8336]
[1673447227896,20.0,15.716,15.698,75.8336]
[1673447228317,47.73,15.715,15.698,67.79]
[1673447229575,27.64,15.71,15.698,47.79]
[1673447229777,27.64,15.71,15.697,40.0]
[1673447229982,47.75,15.709,15.697,40.0]
[1673447230199,47.75,15.709,15.698,20.0]
[1673447230517,47.75,15.709,15.698,67.79]
[1673447231354,27.64,15.71,15.698,67.79]
[1673447232423,27.64,15.71,15.699,1.92]
[1673447235445,47.73,15.715,15.699,1.92]
[1673447235672,20.0,15.716,15.7,47.78]
[1673447235875,67.73,15.718,15.701,1.92]
[1673447236078,67.73,15.718,15.701,21.92]
[1673447236291,67.73,15.718,15.702,47.77]
[1673447236499,67.73,15.718,15.703,21.92]
[1673447236927,67.73,15.718,15.705,20.0]
[1673447237142,47.72,15.719,15.706,21.92]
[1673447237343,33.0473767,15.72,15.706,21.92]
[1673447237344,33.0473767,15.72,15.706,69.68]
[1673447237556,33.0473767,15.72,15.707,20.0]
[1673447237879,33.0473767,15.72,15.708,1.92]
[1673447238085,33.0473767,15.72,15.709,20.0]
[1673447238299,33.0473767,15.72,15.71,1.92]
[1673447241875,47.72,15.719,15.71,1.92]
[1673447242916,47.72,15.719,15.704,47.77]
[1673447243133,47.72,15.719,15.698,20.0]